[Event "3rd VIZAG GM-Open 2022"]
[Site "Visakapatnam"]
[Date "2022.06.13"]
[Round "5.3"]
[White "Abdyjapar, Asyl"]
[Black "Nikitenko, Mihail"]
[Result "1-0"]
[ECO "D46"]
[WhiteElo "2346"]
[BlackElo "2479"]
[Annotator "TA"]
[PlyCount "133"]
[EventDate "2022.06.13"]
[EventType "swiss"]
[EventCountry "IND"]
[SourceTitle "playchess.com"]
[Source "ChessBase"]
[SourceQuality "1"]
[TimeControl "5400+30"]

{[%evp 14,133,0,5,20,-12,0,-19,9,5,15,0,0,8,9,-58,-52,-71,-62,-79,-41,-60,-45,-120,-75,-86,-52,-40,-48,-22,-27,-54,-45,-51,0,8,235,229,198,129,139,143,253,270,283,264,420,435,875,829,772,721,5351,4499,1206,1227,29982,29983,3346,358,369,352,352,352,352,344,358,358,358,358,351,344,337,329,371,371,358,357,374,374,433,432,424,398,443,432,29957,576,799,0,29970,29971,29981,29982,29982,29983,29982,29966,29964,29966,29969,29970,29962,29961,5729,445,5722,5522,29977,418,29978,29979,29988,29989,29989,29990,29994,29987,29987,29988,29994,4952]} 1. d4 {[%emt 0:00:30]} d5 {[%emt 0:00:11]} 2. c4 {[%emt 0:00:02]} c6 {[%emt 0:00:09]} 3. Nf3 {[%emt 0:00:04]} Nf6 {[%emt 0:00:09]} 4. Nc3 {[%emt 0:00:02]} e6 {[%emt 0:00:12]} 5. e3 {[%emt 0:01:42]} Nbd7 {[%emt 0:00:08]} 6. Qc2 {[%emt 0:00:08]} Bd6 {[%emt 0:00:09]} 7. Bd3 {[%emt 0:00:50]} dxc4 {[%emt 0:00:30]} 8. Bxc4 {[%emt 0:00:02]} a6 {[%emt 0:00:10] D46: Semi-Slav: 5 e3 Nbd7 6 Bd3, Black avoids the Meran.} 9. a3 {[%emt 0:00:27]} O-O {[%emt 0:00:27]} 10. b4 {[%emt 0:01:37] [#]} (10. e4 $5 {[%cal Re4e5]} e5 11. Be2 $11) 10... Qe7 $146 {[%emt 0:03:16] The position is equal.} ({Predecessor:} 10... e5 11. Bb2 exd4 12. Nxd4 Ne5 13. Be2 Ng6 {½-½ (13) Dettmann,U (1811)-Loeke,P (1723) Mecklenburg VP 2008}) 11. O-O {[%emt 0:02:17]} b5 {[%emt 0:03:43][%cal Bb7b5,Bb5b4][%mdl 32]} 12. Bd3 {[%emt 0:00:24]} a5 {[%emt 0:01:23]} 13. bxa5 {[%emt 0:05:06]} Rxa5 {[%emt 0:00:18]} 14. a4 {[%emt 0:00:56]} (14. Nd2 $11) 14... b4 $15 {[%emt 0:01:50]} 15. Ne2 {[%emt 0:02:32]} c5 {[%emt 0:05:07]} 16. e4 {[%emt 0:04:39] Black must now prevent e5.} cxd4 {[%emt 0:00:07]} 17. Nexd4 {[%emt 0:00:04] Threatens to win with Nc6.} Bb7 {[%emt 0:00:09]} 18. Nb3 {[%emt 0:02:36]} (18. Re1 $15) 18... Rh5 $1 $17 {[%emt 0:02:15]} 19. Bb2 {[%emt 0:01:50]} Ng4 {[%emt 0:03:35][%cal Rd6h2]} 20. h3 {[%emt 0:01:52]} Nge5 {[%emt 0:00:06] Strongly threatening ...Nxf3+.} 21. Nxe5 {[%emt 0:07:53]} Nxe5 {[%emt 0:00:26]} 22. f4 {[%emt 0:00:29]} Nxd3 {[%emt 0:01:35]} 23. Qxd3 {[%emt 0:00:02]} f5 {[%emt 0:00:56]} (23... Rd8 $15 24. Qe3 f5) 24. Rad1 $11 {[%emt 0:07:38]} Bc7 {[%emt 0:01:21] [#]} (24... Rd8 $11 {and Black has nothing to worry.}) 25. Qb5 $1 $18 {[%emt 0:03:31] Rd7 is the strong threat.} Bc8 {[%emt 0:00:05] [#] Against Rd7} (25... Bxe4 $2 26. Rd7 Bb6+ 27. Kh2 $18) 26. e5 {[%emt 0:02:38]} ({Better is} 26. Rc1 $1 $18) 26... g5 $16 {[%emt 0:02:57]} 27. Bd4 $36 {[%emt 0:02:30][%mdl 2048] White is on the roll. 0x0.0008610a8ebcdp-1022s more active pieces. The black rooks are badly placed.} Qf7 {[%emt 0:04:13]} (27... gxf4 $2 28. Bc5 Qe8 29. Bxf8 (29. Qxb4 Rf7 $11) (29. Rxf4 Qxb5 30. axb5 Re8 $18) 29... Qxb5 30. axb5 $18) (27... Bd7 $16 {was necessary.} 28. Qb7 Bc8) 28. Bc5 $18 {[%emt 0:03:26]} (28. Qxb4 gxf4 29. Rd2 (29. Rxf4 Qg7 $14) 29... Bd7 $16) 28... Re8 {[%emt 0:05:26]} 29. a5 {[%emt 0:01:48][%cal Ba4a5,Ba5a6][%mdl 32]} (29. Qxb4 gxf4 30. Qxf4 Qg7 $11) 29... g4 {[%emt 0:04:37]} (29... gxf4 $142 30. a6 (30. Qxb4 Qg6 $11) (30. Bxb4 Kh8 $15) (30. Rxf4 Bxe5 31. Rf2 f4 $16) 30... Bxa6 31. Qxa6 Bxe5 32. Bxb4 Rg5) 30. a6 {[%emt 0:04:03]} Bb8 {[%emt 0:01:13] Prevents a7.} (30... gxh3 $142 31. a7 hxg2) 31. Qxb8 {[%emt 0:01:25] Hoping for a7.} gxh3 {[%emt 0:00:04]} 32. Rf2 {[%emt 0:00:59] aiming for a7.} Bxa6 {[%emt 0:01:07]} 33. Rd8 {[%emt 0:01:07]} ({Less strong is} 33. Qxb4 Bb7 34. Na5 hxg2 35. Qxb7 (35. Rxg2+ $2 Bxg2 36. Kf2 Bd5 $19) 35... Rh1+ 36. Kxg2 Rxd1 37. Qxf7+ Kxf7 $11) 33... h2+ {[%emt 0:00:43]} 34. Kh1 {[%emt 0:00:06]} Rxd8 {[%emt 0:00:01]} 35. Qxd8+ {[%emt 0:00:08]} Kg7 {[%emt 0:00:03]} 36. Qe7 $2 {[%emt 0:01:09]} (36. Nd4 {[%cal Od4e6] Threatening mate with Nxe6+!} h6 37. Rf3) 36... Bb7 {[%emt 0:02:39]} 37. Qxf7+ {[%emt 0:00:26]} Kxf7 {[%emt 0:00:05]} 38. Bxb4 {[%emt 0:00:27]} Rh3 {[%emt 0:00:03]} 39. Nd2 {[%emt 0:00:10]} Bd5 {[%emt 0:00:35]} 40. Nf3 {[%emt 0:00:33]} Rg3 {[%emt 0:00:04]} 41. Kxh2 {[%emt 0:00:18]} Rg4 {[%emt 0:00:08]} 42. Bd2 {[%emt 0:00:19]} Rg8 {[%emt 0:00:08]} 43. Be1 {[%emt 0:02:03]} Rg4 {[%emt 0:00:04]} 44. Nd2 {[%emt 0:02:35]} Rg8 {[%emt 0:01:04]} 45. Nf1 {[%emt 0:00:12]} Ra8 {[%emt 0:00:15]} 46. Ne3 {[%emt 0:00:16]} Be4 {[%emt 0:00:05]} 47. Rd2 {[%emt 0:00:11]} Ra7 {[%emt 0:00:19]} 48. Bh4 {[%emt 0:00:26]} h6 {[%emt 0:00:29]} 49. Bf6 {[%emt 0:00:45]} Ra3 {[%emt 0:00:06]} (49... Rc7 $18 50. Kg3 Ra7) 50. Nc4 {[%emt 0:00:33]} (50. Rd7+ $142 Kg6 51. Rg7+ Kh5 52. Nf1 Rd3 53. Ng3+ Rxg3 54. Rxg3 Bd5 55. Bg7) 50... Ra4 {[%emt 0:00:18]} 51. Ne3 {[%emt 0:02:14]} Ra3 $1 {[%emt 0:00:04]} 52. Rd7+ {[%emt 0:00:30]} Ke8 {[%emt 0:00:02]} 53. Re7+ {[%emt 0:00:12]} Kf8 {[%emt 0:00:03]} 54. Nc4 {[%emt 0:00:22]} Ra2 {[%emt 0:00:03]} 55. Rg7 {[%emt 0:00:05]} Rf2 {[%emt 0:00:04]} 56. Nd6 {[%emt 0:00:57]} Bd5 {[%emt 0:00:05]} 57. Rh7 {[%emt 0:02:58][%cal Rh7h8]} Rxg2+ {[%emt 0:00:08]} 58. Kh3 {[%emt 0:00:06]} Rg1 {[%emt 0:00:44]} 59. Rh8+ {[%emt 0:00:18]} Rg8 {[%emt 0:00:04]} 60. Rxh6 {[%emt 0:00:09]} Rg1 {[%emt 0:00:35]} 61. Rh8+ {[%emt 0:01:52]} Rg8 {[%emt 0:00:05]} 62. Rh7 {[%emt 0:00:50][%csl Gh7][%cal Rf6e7] White mates.} Rg1 {[%emt 0:00:31]} 63. Rc7 {[%emt 0:00:15][%cal Rc7c8]} Rh1+ {[%emt 0:00:04]} 64. Kg3 {[%emt 0:00:02][%cal Rc7c8]} Kg8 {[%emt 0:00:04]} 65. Rg7+ {[%emt 0:01:19]} Kf8 {[%emt 0:00:03]} 66. Rd7 {[%emt 0:00:04][%cal Rd7d8]} Kg8 {[%emt 0:00:09] [#]} 67. Nxf5 $1 {[%emt 0:00:13] Weighted Error Value: White=0.61/Black=0.64} 1-0

[Event "3rd VIZAG GM-Open 2022"]
[Site "Visakapatnam"]
[Date "2022.06.13"]
[Round "5.4"]
[White "Nitin, S.."]
[Black "Nguyen, Van Huy"]
[Result "1/2-1/2"]
[ECO "B12"]
[WhiteElo "2399"]
[BlackElo "2405"]
[Annotator "TA"]
[PlyCount "41"]
[EventDate "2022.06.13"]
[EventType "swiss"]
[EventCountry "IND"]
[SourceTitle "playchess.com"]
[Source "ChessBase"]
[SourceQuality "1"]
[TimeControl "5400+30"]

{[%evp 9,41,4,12,5,10,-6,15,0,0,0,8,12,11,0,0,0,0,0,0,1,12,0,2,0,44,0,23,0,22,0,25,0,42,0]} 1. e4 {[%emt 0:00:33]} c6 {[%emt 0:00:48]} 2. d4 {[%emt 0:00:32]} d5 {[%emt 0:00:18]} 3. e5 {[%emt 0:00:11]} Bf5 {[%emt 0:00:35]} 4. c4 {[%emt 0:00:11]} e6 {[%emt 0:01:08]} 5. Nc3 {[%emt 0:00:25]} Ne7 {[%emt 0:02:18][%cal Oc6c5]} 6. h3 {[%emt 0:01:16] B12: Caro-Kann: Advance Variation.} dxc4 {[%emt 0:03:48]} 7. Bxc4 {[%emt 0:00:48]} Nd7 {[%emt 0:00:36]} (7... c5 {feels hotter.} 8. Bg5 a6 9. d5 exd5 10. Nxd5 Be6) 8. Nge2 {[%emt 0:03:28] The position is equal.} Nb6 {[%emt 0:08:12]} 9. Bb3 {[%emt 0:01:13]} Ned5 {[%emt 0:03:35]} 10. O-O {[%emt 0:02:16]} Be7 {[%emt 0:02:31]} 11. Ng3 {[%emt 0:03:45]} Bg6 {[%emt 0:05:00] [#]} 12. Qe2 $146 {[%emt 0:09:41]} ({Predecessor:} 12. Nce4 O-O 13. Qg4 Qc8 14. Nh5 f5 15. exf6 gxf6 16. Qe2 Qe8 17. Nhg3 Kh8 18. Bh6 {1-0 (56) Petrov,M (2534)-Schachinger,M (2360) Vienna 2011}) 12... O-O {[%emt 0:08:59]} 13. Nce4 {[%emt 0:02:31]} Nd7 {[%emt 0:08:40]} 14. Rd1 {[%emt 0:09:44]} a5 {[%emt 0:02:50]} 15. a3 {[%emt 0:03:02]} Qb6 {[%emt 0:07:25]} 16. Ba2 {[%emt 0:03:57]} Qa6 {[%emt 0:02:00] [#] And now ...Qxe2 would win.} 17. Bc4 {[%emt 0:00:09]} Qb6 {[%emt 0:00:02]} (17... b5 $5 {[%cal Rb5c4]} 18. Ba2 Rfb8 $11) 18. Ba2 {[%emt 0:00:08]} Qa6 {[%emt 0:00:01] Strongly threatening ...Qxe2.} 19. Bc4 {[%emt 0:00:08]} Qb6 {[%emt 0:00:04]} 20. Ba2 {[%emt 0:00:05]} Qa6 {[%emt 0:00:04] [#] White must now prevent ...Qxe2.} 21. Bc4 {[%emt 0:00:50] Not much happened in this game.  Weighted Error Value: White=0.10 (very precise) /Black=0.09 (flawless)} 1/2-1/2

[Event "3rd VIZAG GM-Open 2022"]
[Site "Visakapatnam"]
[Date "2022.06.13"]
[Round "5.5"]
[White "Aditya Varun Gampa"]
[Black "Audi Ameya"]
[Result "0-1"]
[ECO "C32"]
[WhiteElo "1836"]
[BlackElo "2389"]
[Annotator "TA"]
[PlyCount "70"]
[EventDate "2022.06.13"]
[EventType "swiss"]
[EventCountry "IND"]
[SourceTitle "playchess.com"]
[Source "ChessBase"]
[SourceQuality "1"]
[TimeControl "5400+30"]

{[%evp 10,70,-47,-34,-31,-52,-60,-41,-28,-64,-61,-85,-110,-100,-106,-183,-158,-193,-187,-191,-206,-204,-190,-212,-209,-210,-214,-212,-181,-200,-218,-257,-252,-258,-250,-235,-241,-339,-338,-389,-389,-390,-391,-403,-399,-539,-539,-541,-543,-967,-888,-945,-900,-1558,-1556,-1537,-1491,-1481,-1437,-1548,-1458,-1366,-1204]} 1. e4 {[%emt 0:00:08]} e5 {[%emt 0:00:02]} 2. Nc3 {[%emt 0:00:05]} Nf6 {[%emt 0:00:36]} 3. Bc4 {[%emt 0:00:05]} Bc5 {[%emt 0:00:39]} 4. f4 {[%emt 0:00:04]} d5 {[%emt 0:00:33]} 5. exd5 {[%emt 0:00:06]} e4 {[%emt 0:00:09]} 6. d4 {[%emt 0:00:04]} exd3 $1 {[%emt 0:00:09] C32: Falkbeer Counter Gambit: 3 exd5 e4 4 d3 Nf6.} 7. Qxd3 {[%emt 0:00:05]} O-O $1 {[%emt 0:00:45]} 8. Nge2 {[%emt 0:02:41]} Re8 {[%emt 0:00:27][%mdl 1024] Black has compensation. Black is slightly better.} 9. Bd2 {[%emt 0:06:29]} Ng4 $1 {[%emt 0:00:27][%cal Bf6g4,Bg4f2,Bf2e4][%mdl 32] Hoping for ...Nf2.} 10. O-O-O {[%emt 0:10:01] Black converts the advantage convincingly.} Nf2 {[%emt 0:00:38][%csl LRd1,LRd3,LRh1]} 11. Qg3 {[%emt 0:00:25][%cal Oc4d3] [#]} Nd7 $146 {[%emt 0:06:44] Black is more active.} ({Predecessor:} 11... Nxh1 12. Rxh1 Bd7 13. Rf1 a6 14. f5 Qf6 15. Bg5 Qxg5+ 16. Qxg5 Be3+ 17. Qxe3 Rxe3 {0-1 (47) Bath,T (1424)-Hewitt,S Gibraltar 2008}) 12. Na4 {[%emt 0:10:22] [#]} Ne4 $1 $19 {[%emt 0:18:25]} (12... Nxh1 13. Rxh1 Nb6 14. Nxb6 axb6 15. Rd1) (12... Nxd1 13. Rxd1 Bd6 14. Bd3 $17) 13. Qd3 {[%emt 0:02:21]} Nxd2 {[%emt 0:00:36]} (13... Nf2 14. Qf3 Nxd1 15. Rxd1 $17) 14. Nxc5 {[%emt 0:01:51] Black must now prevent Ne6.} Nxc4 {[%emt 0:00:25]} 15. Nxd7 {[%emt 0:00:11]} Ne3 {[%emt 0:01:08]} (15... Bxd7 16. Qxc4 Bg4 17. Rd2 $11) 16. Ne5 {[%emt 0:00:50]} Nxd1 {[%emt 0:00:07]} 17. Rxd1 {[%emt 0:00:07]} f6 {[%emt 0:03:03]} 18. Nf3 {[%emt 0:01:53] [#]} ({Much weaker is} 18. d6 Qxd6 19. Qb3+ Qe6 20. Qxe6+ Bxe6 $19) 18... Qd6 $1 {[%emt 0:09:03][%cal Ob7b5]} 19. Rd2 {[%emt 0:08:26]} Bg4 {[%emt 0:03:47]} 20. c4 {[%emt 0:03:25]} Re7 {[%emt 0:05:38]} 21. Qd4 {[%emt 0:09:30]} Bxf3 {[%emt 0:09:34]} 22. gxf3 {[%emt 0:00:22]} c5 {[%emt 0:03:31]} 23. Qd3 {[%emt 0:08:41]} (23. Qf2 {might work better.}) 23... Rae8 {[%emt 0:00:15][%cal Ba8e8,Be8e3,Be3f3][%mdl 32]} 24. Ng3 {[%emt 0:00:15]} Re3 {[%emt 0:08:34]} 25. Nf5 {[%emt 0:00:15]} Qxf4 {[%emt 0:02:36]} ({And not} 25... Rxd3 26. Nxd6 Rxd2 27. Kxd2 $17) ({Don't go for} 25... Re1+ $2 26. Kc2 Qxf4 27. d6 $19) 26. Nxe3 {[%emt 0:00:05]} Rxe3 {[%emt 0:00:02][%mdl 4096] Endgame KQR-KQR} 27. Qf1 {[%emt 0:00:17]} Rxf3 {[%emt 0:00:05] Black is clearly winning.} 28. Qe2 {[%emt 0:03:37][%cal Re2e8]} Re3 {[%emt 0:00:16] Inhibits Qe8+.} 29. Qd1 {[%emt 0:01:11]} Qxc4+ {[%emt 0:00:42]} 30. Rc2 {[%emt 0:00:55]} Qe4 {[%emt 0:00:45]} 31. Rxc5 {[%emt 0:02:05]} Re1 {[%emt 0:00:21]} 32. Rc8+ {[%emt 0:00:13]} Kf7 {[%emt 0:00:04]} 33. Rc7+ {[%emt 0:00:28]} Kg6 {[%emt 0:00:54] ( -> ...Qf4+)} 34. Qxe1 {[%emt 0:00:10]} Qxe1+ {[%emt 0:00:03]} 35. Kc2 {[%emt 0:00:03]} Qe4+ {[%emt 0:00:19] Weighted Error Value: White=0.58/Black=0.00 (flawless)} 0-1

[Event "3rd VIZAG GM-Open 2022"]
[Site "Visakapatnam"]
[Date "2022.06.13"]
[Round "5.6"]
[White "Paichadze, Luka"]
[Black "Bharat Kumar Reddy Poluri"]
[Result "1-0"]
[ECO "C02"]
[WhiteElo "2567"]
[BlackElo "2224"]
[Annotator "TA"]
[PlyCount "69"]
[EventDate "2022.06.13"]
[EventType "swiss"]
[EventCountry "IND"]
[SourceTitle "playchess.com"]
[Source "ChessBase"]
[SourceQuality "1"]
[TimeControl "5400+30"]

{[%evp 11,69,-5,0,-22,-20,-27,-23,-22,12,9,13,16,15,11,40,20,24,25,36,30,67,73,77,68,73,23,81,31,136,134,133,139,155,120,206,217,210,209,208,210,209,214,214,212,426,364,651,505,29987,29988,29988,29989,29989,29983,29992,29993,29996,29997,29997,29998]} 1. e4 {[%emt 0:00:06]} e6 {[%emt 0:09:57]} 2. d4 {[%emt 0:00:08]} d5 {[%emt 0:00:05]} 3. e5 {[%emt 0:00:02]} c5 {[%emt 0:00:06][%cal Bc7c5,Bc5d4][%mdl 32]} 4. c3 {[%emt 0:00:03]} Qb6 {[%emt 0:00:15]} 5. Nf3 {[%emt 0:00:06]} Nc6 {[%emt 0:00:40]} 6. Bd3 {[%emt 0:00:05]} cxd4 {[%emt 0:00:32]} 7. O-O $1 {[%emt 0:00:07][%mdl 4] is currently scoring better than 7.cxd4. C02: French: Advance Variation.} Bd7 {[%emt 0:00:17]} 8. Re1 {[%emt 0:00:06]} Nge7 {[%emt 0:08:14]} 9. h4 {[%emt 0:00:51] Black has an edge.} Nf5 {[%emt 0:06:47]} 10. Bxf5 {[%emt 0:13:33]} exf5 {[%emt 0:00:03]} 11. cxd4 {[%emt 0:00:07] [#]} Bb4 $146 {[%emt 0:00:49]} ({Predecessor:} 11... Be6 12. Nc3 Be7 13. Na4 Qb5 14. Bg5 Bb4 15. Nc3 Qa5 16. Bd2 O-O 17. a3 Be7 {½-½ (64) Perez Ponsa,F (2554)-Abdusattorov,N (2646) Chess.com INT 2021}) 12. Nc3 {[%emt 0:01:10][%cal Bb1c3,Bc3a4,Ba4c5][%mdl 32]} Be6 {[%emt 0:07:12]} (12... Bxc3 $5 13. bxc3 O-O $11) 13. Re2 {[%emt 0:09:23]} O-O {[%emt 0:07:59]} 14. Na4 $36 {[%emt 0:04:16][%mdl 2048] White has the initiative.} Qd8 {[%emt 0:01:47]} 15. Bg5 {[%emt 0:01:18]} Be7 {[%emt 0:00:19][%cal Of5f4]} 16. Nc5 {[%emt 0:01:45]} Bxg5 {[%emt 0:01:10]} 17. hxg5 {[%emt 0:02:34]} Qe7 {[%emt 0:05:08]} 18. Rc1 {[%emt 0:02:00]} (18. Re3 $16) 18... Rfc8 {[%emt 0:00:08]} (18... f4 $1 $11) 19. Qa4 {[%emt 0:01:56]} (19. Re3 $16) 19... b6 {[%emt 0:03:19] Black is now going downhill.} (19... f4 $14) 20. Nxe6 $16 {[%emt 0:10:38] White is more active.} Qxe6 {[%emt 0:00:17]} 21. Rec2 {[%emt 0:00:10]} Na5 {[%emt 0:01:13]} 22. Qb5 {[%emt 0:04:37][%cal Ob5d5] Strongly threatening Qxd5!} Rc4 {[%emt 0:04:48]} (22... Rxc2 $16 {is a better defense.} 23. Rxc2 Nc4) 23. Rxc4 $18 {[%emt 0:02:33]} dxc4 {[%emt 0:01:00]} 24. d5 {[%emt 0:00:24][%cal Bd4d5,Bd5d6,Bd6d7][%mdl 32]} Qe8 {[%emt 0:01:06]} 25. Qb4 {[%emt 0:01:27]} Rc8 {[%emt 0:01:11]} 26. Qd2 {[%emt 0:01:40]} Qd7 {[%emt 0:02:02]} 27. d6 {[%emt 0:04:10][%cal Og5g6] g6! is the strong threat.} Re8 $2 {[%emt 0:04:21] [#]} (27... Nb7 {was worth a try.} 28. Qd4 Nd8 29. Rxc4 g6) 28. Qd5 {[%emt 0:01:46]} Rc8 $2 {[%emt 0:00:38]} (28... b5 29. Nd4 a6) 29. b4 {[%emt 0:02:06]} cxb3 {[%emt 0:00:11]} (29... Nc6 $18 30. Rxc4 Nd8) 30. Rxc8+ {[%emt 0:00:06] White mates.} Qxc8 {[%emt 0:00:05] KQN-KQN} 31. d7 {[%emt 0:00:31][%cal Rd7c8]} Qd8 {[%emt 0:00:11]} 32. axb3 {[%emt 0:00:04]} Nxb3 {[%emt 0:00:20]} 33. e6 {[%emt 0:00:38]} ({Weaker is} 33. Qxb3 Qxd7 34. Qb2 g6 $18) 33... fxe6 {[%emt 0:01:17]} 34. Qxe6+ {[%emt 0:00:06]} Kf8 {[%emt 0:00:09]} 35. Ne5 {[%emt 0:00:08] Weighted Error Value: White=0.16 (very precise) /Black=0.59} 1-0